Cogmind - Beta 15 @@@ ROGUE MODE // 2025.07.20 @ 19:09:34 Player: Cracklepappy Result: Self-destructed Performance ------------- Evolutions (5) 2500 Regions Visited (14) 2800 Robots Destroyed (281) 1405 Value Destroyed (9431) 9431 Prototype IDs (46) 920 Alien Tech Used (0) 0 Bonus (1794) 1794 TOTAL SCORE: 18850 Bonus ------- High Alert Combat Kills 268 Follower Combat Kills 256 Entered Garrisons 200 Registered with UFD 300 Met Optimus in HQ 500 Destroyed Z-Imprinter 1000 Friendly Fire -730 Cogmind --------- Core Integrity 780/1000 Matter 300/300 Energy 928/1700 System Corruption 3% Temperature Cool (32) Movement Core (1700) Ox33 Location -5/Factory Parts ------- > --- POWER (2) -------- (None) > --- PROPULSION (2) --- (None) > --- UTILITY (6) ------ Huge Storage Unit Zionite Biocell Assembled Biocell Array Authchip [Propulsion] > --- WEAPON (7) ------- Assembled Focal Cannon KE Penetrator > --- INVENTORY (25) --- Antimatter Reactor Wheel Experimental Heat Sink Experimental Heat Sink Zionite Biocell (600) Zionite Biocell (600) Matter Compressor (250) Matter Compressor (250) Surveybot 24 Chip Core Analyzer Cloak of Protection Experimental Thermal Shield Advanced Shield Generator Relay Coupler [Programmer] (68) Relay Coupler [Programmer] (72) Relay Coupler [Programmer] (85) A0-MCA's Component Scanner High-powered Tractor Beam Hacking Drone Bay (1/1) Dimensional Node Initializer Improved Plasma Cutter Spear Peak State ------------ > --- POWER ------------ Assembled Flux Generator > --- PROPULSION ------- Armored Huge Wheel > --- UTILITY ---------- Experimental Heat Sink Huge Storage Unit Assembled Biocell Array Advanced Shield Generator GOLEM Unit > --- WEAPON ----------- Assembled Focal Cannon Assembled Focal Cannon Assembled Focal Cannon Minigun Improved Heavy Machine Gun KE Penetrator KE Penetrator > --- INVENTORY -------- Antimatter Reactor Experimental Heat Sink Zionite Biocell Zionite Biocell Zionite Biocell Zionite Biocell Matter Compressor Matter Compressor Surveybot 24 Chip Makeshift Salvage Targeting Computer Advanced Particle Charger Cloak of Protection Experimental Thermal Shield Relay Coupler [Programmer] Relay Coupler [Programmer] Relay Coupler [Programmer] A0-MCA's Component Scanner High-powered Tractor Beam Hacking Drone Bay Dimensional Node Initializer Neutron Cannon Minigun Coil Gun Improved Plasma Cutter Spear [Rating: 128] Favorites ----------- Power Fission Core Engine Cooled Ion Engine Power Core Fission Core Reactor Zionite Light DM Reactor Propulsion Armored Huge Wheel Wheel Armored Huge Wheel Utility Huge Storage Unit Device Improved Cooling System Storage Huge Storage Unit Processor Improved Targeting Computer Hackware Advanced Hacking Suite Protection Hardened Light Armor Plating Weapon Flak Gun Energy Gun Medium Laser Energy Cannon Assembled Focal Cannon Ballistic Gun Flak Gun Ballistic Cannon Improved Light Cannon Launcher Rocket Launcher Special Weapon Remote Datajack Impact Weapon Heavy Hammer Piercing Weapon Spear Special Melee Weapon Datajack Build | -11 -10 -10 -9 -9 -9 -9 -9 -6 -6 -6 -6 -6 -5 -5 ------- Run | Yrd Mat Min Mat Sto Gar Rec Scr Fac Low Low Zio Dee Pro Fac Slots Evolved 10 | . . . 2 . . . . 6 . . . . . 2 Power 1 | . . . . . . . . . . . . . . 1 Propulsion . | . . . . . . . . . . . . . . . Utility 4 | . . . . . . . . 3 . . . . . 1 Weapon 5 | . . . 2 . . . . 3 . . . . . . Parts Attached 193 | 8 24 6 20 22 10 6 10 32 2 7 6 31 1 8 Power 22 | 1 4 1 3 4 . . 2 1 1 . . 5 . . Engine 14 | 1 4 1 3 4 . . 1 . . . . . . . Core 3 | . . . . . . . 1 1 1 . . . . . Reactor 5 | . . . . . . . . . . . . 5 . . Propulsion 29 | 2 9 2 2 8 4 . . 1 . . . 1 . . Treads . | . . . . . . . . . . . . . . . Leg . | . . . . . . . . . . . . . . . Wheel 29 | 2 9 2 2 8 4 . . 1 . . . 1 . . Hover . | . . . . . . . . . . . . . . . Flight . | . . . . . . . . . . . . . . . Utility 67 | 3 4 1 3 4 3 4 5 13 1 1 2 18 1 4 Device 32 | 2 2 1 1 1 2 3 2 4 1 1 1 10 1 . Storage 14 | 1 1 . 2 1 . 1 1 3 . . . 2 . 2 Processor 5 | . . . . . . . . 4 . . 1 . . . Hackware 4 | . . . . . . . . 2 . . . . . 2 Protection 12 | . 1 . . 2 1 . 2 . . . . 6 . . Artifact . | . . . . . . . . . . . . . . . Weapon 75 | 2 7 2 12 6 3 2 3 17 . 6 4 7 . 4 Energy Gun 10 | 2 1 . 2 . . . . . . . 1 4 . . Energy Cannon 6 | . . . 3 . . 1 . 1 . . . 1 . . Ballistic Gun 37 | . 2 1 2 3 2 1 2 13 . 6 1 . . 4 Ballistic Cannon 7 | . 2 . 4 . . . . 1 . . . . . . Launcher 3 | . . 1 1 1 . . . . . . . . . . Special Weapon 5 | . . . . . 1 . 1 . . . 1 2 . . Impact Weapon 5 | . 2 . . 1 . . . 1 . . 1 . . . Slashing Weapon . | . . . . . . . . . . . . . . . Piercing Weapon 1 | . . . . . . . . 1 . . . . . . Special Melee Weapon 1 | . . . . 1 . . . . . . . . . . Unidentified Prototypes 22 | . . . 4 2 . . . 1 . . 1 14 . . Corrupted Parts 2 | . . 2 . . . . . . . . . . . . System Corruption 4 | . . 4 . . . . . . . . . . . . Parts Lost 27 | . 4 . . 3 1 . . . . . . 9 . 10 Power 2 | . 1 . . . . . . . . . . . . 1 Propulsion 4 | . . . . 2 1 . . . . . . . . 1 Utility 10 | . 1 . . 1 . . . . . . . 7 . 1 Weapon 11 | . 2 . . . . . . . . . . 2 . 7 Highest Loss Streak 10 | . 2 . . 2 1 . . . . . . 5 . 10 To Critical Strikes 1 | . . . . . . . . . . . . . . 1 Average Backups 22 | 3 13 15 16 23 23 23 23 24 24 24 23 22 24 24 Power 1 | . . 1 1 2 1 1 1 1 1 1 . 1 . . Propulsion 1 | 1 3 2 1 2 1 1 2 1 1 1 1 . . . Utility 10 | . 3 6 4 9 10 9 8 8 8 9 10 12 18 18 Weapon 7 | . 4 4 7 8 9 9 10 9 10 9 8 5 4 2 Tool/Special . | . . . . . . . . . . . . . . . Unused Backups 71 | . 8 5 3 12 2 2 5 12 1 . . 6 . 15 Power 6 | . 1 . . 2 . . . 1 . . . 2 . . Propulsion 7 | . 2 . . 2 . 1 . 1 . . . . . 1 Utility 41 | . 1 3 1 8 1 1 3 7 . . . 4 . 12 Weapon 14 | . 4 1 2 . 1 . 2 3 . . . . . 1 Tool/Special 3 | . . 1 . . . . . . 1 . . . . 1 Average Slot Usage (%) 93 | . 99 100 99 99 99 98 92 95 93 93 92 90 85 81 Engine 4 | . 14 14 11 11 11 11 9 . . . . . . . Core 2 | . . . . . . . 1 5 6 6 6 . . . Reactor 1 | . . . . . . . . . . . . 5 6 4 Wheel 13 | . 28 28 22 21 21 22 22 9 6 6 6 5 6 4 Device 10 | . 9 . 10 3 11 11 9 12 13 13 11 13 13 10 Storage 9 | . 14 14 11 11 11 11 12 6 6 6 6 6 12 11 Processor 5 | . . . . . . . . 13 13 13 13 6 . . Protection 1 | . 4 13 . 7 . . . . . . . 2 . . Energy Cannon 3 | . . . 8 4 . . . . . . . 1 19 16 Ballistic Gun 31 | . 8 . 2 33 38 41 24 44 45 44 42 41 26 22 Ballistic Cannon 3 | . 9 27 32 4 . . . . . . . . . . Impact Weapon 1 | . 1 . . 1 4 1 3 . . . . . . . Peak Build Rating 128 | 7 12 14 22 28 29 29 36 65 70 70 74 99 106 128 Average Rating 52 | 5 9 12 18 23 26 28 28 61 67 68 69 74 104 125 On Entrance 42 | . 7 12 14 22 28 26 22 36 64 69 68 69 99 105 Naked Turns . | . . . . . . . . . . . . . . . Heaviest Build 189 | 13 38 36 105 107 106 106 109 130 131 131 124 155 156 189 Greatest Support 32 | 20 26 20 20 26 32 24 24 28 28 28 28 28 28 28 Greatest Overweight (x) 10 | . 1 1 5 10 6 4 4 5 4 4 4 5 5 6 Average Overweight (x) 3 | . . 1 2 4 3 4 4 4 4 4 4 4 5 6 Largest Inventory Capacity 25 | 8 15 15 25 25 25 25 25 25 25 25 25 25 25 25 Average Capacity 23 | 7 13 15 16 25 25 25 25 25 25 25 25 25 25 25 Most Carried 25 | 8 15 15 25 25 25 25 25 25 25 25 25 25 25 25 Average Carried 22 | 3 13 14 16 24 24 24 24 24 24 24 24 23 24 24 Final Capacity 25 | 8 15 15 25 25 25 25 25 25 25 25 25 25 25 25 Final Carried 25 | 8 15 15 25 25 25 25 25 25 25 25 25 25 25 22 Class Distribution -------------------- 40% | Executioner 20% | Gunner 14% | Mutant 11% | Derelict-Executioner 3% | Golem Dominant Class ---------------- Mutant | -10/Materials Mutant | -10/Mines Gunner | -9/Materials Tank | -9/Storage Gunner | -9/Garrison Gunner | -9/Recycling Gunner | -9/Scraptown Executioner | -6/Factory Executioner | -6/Lower Caves Derelict-Executioner | -6/Lower Caves Derelict-Executioner | -6/Zion Executioner | -6/Deep Caves Executioner | -5/Proximity Caves Golem | -5/Factory Resources | -11 -10 -10 -9 -9 -9 -9 -9 -6 -6 -6 -6 -6 -5 -5 ----------- Run | Yrd Mat Min Mat Sto Gar Rec Scr Fac Low Low Zio Dee Pro Fac Matter Collected 12167 | 280 1042 192 1292 1366 864 505 534 2498 858 441 160 1376 248 511 Remotely . | . . . . . . . . . . . . . . . Salvage Created 12013 | 186 1064 112 1096 1956 1300 662 . 2370 566 368 . 900 378 1055 Parts 621 | 19 89 6 77 107 75 31 . 96 13 13 . 26 15 54 Haulers Intercepted 17 | . 2 . 6 6 . . . 3 . . . . . . Recyclers Shooed 8 | 1 . . . 1 . 3 . 2 . . . . . 1 Parts Field Recycled . | . . . . . . . . . . . . . . . Retrieved Matter . | . . . . . . . . . . . . . . . Parts Self-Destructed 40 | . . . . . . . . . 13 12 . . 15 . Prevented 1 | . . . . . . . . . 1 . . . . . Kills | -11 -10 -10 -9 -9 -9 -9 -9 -6 -6 -6 -6 -6 -5 -5 ------- Run | Yrd Mat Min Mat Sto Gar Rec Scr Fac Low Low Zio Dee Pro Fac Combat Hostiles Destroyed 186 | . 25 5 24 22 25 4 . 27 13 7 . 11 9 14 Melee 2 | . . . . . . . . . . . . 2 . . Guns 119 | . 15 . . 12 25 4 . 27 13 7 . 7 4 5 Cannons 59 | . 9 3 24 10 . . . . . . . . 5 8 AOE 4 | . 1 2 . . . . . . . . . . . 1 Classes Destroyed 20 | 2 6 1 2 3 1 . . 1 1 1 . 2 . . Worker 27 | . 7 . 5 7 . . . 6 . . . . . 2 Builder 8 | . . . 3 1 . . . 3 . . . . . 1 Tunneler 9 | 5 1 2 1 . . . . . . . . . . . Hauler 17 | . 2 . 6 6 . . . 3 . . . . . . Recycler 25 | 1 2 . 1 6 . 7 . 7 . . . . . 1 Mechanic 1 | . . . . 1 . . . . . . . . . . Operator 3 | . 1 . . 1 . . . 1 . . . . . . Watcher 10 | . 2 . 3 2 . . . 2 . . . . . 1 Swarmer 35 | . 9 . 3 . 6 . . 5 3 3 . . 5 1 Grunt 76 | . 16 3 12 10 10 . . 9 6 3 . . 3 4 Brawler 2 | . . . . 1 . . . . 1 . . . . . Duelist 6 | . . . . 2 1 . . 1 1 . . . . 1 Sentry 39 | . . . 9 9 6 4 . 5 1 1 . . 1 3 Specialist 3 | . . . . . 2 . . . . . . . . 1 Programmer 11 | . . . . . . . . 7 . . . . . 4 Behemoth 1 | . . . . . . . . . 1 . . . . . Enhanced Grunt 1 | . . . . . . . . . . . . 1 . . Z-Light 5 | . . . . . . . . . . . . 5 . . Samaritan 2 | . . . . . . . . . . 2 . . . . Assembled 4 | . . 2 . . . . . . . . . 2 . . Golem 4 | . . . . . . . . . . . . 4 . . Best Kill Streak 13 | 3 6 2 7 13 5 5 . 5 3 3 . 3 5 4 Combat Bots Only 6 | . 3 2 5 6 5 2 . 5 3 3 . 3 5 3 Max Kills in Single Turn 3 | 1 2 1 2 2 1 2 . 2 3 2 . 2 2 2 Gunslinging 2 | . 1 . . . . . . . 2 1 . 1 1 . Exploded 1 | . 1 1 . . . . . . . . . . . 1 Melee 1 | . . . . . . . . . . . . 1 . . Uniques/NPCs Destroyed 1 | . . . . . . . . . . . . 1 . . Z-Imprinter (-6/Deep Caves) Combat | -11 -10 -10 -9 -9 -9 -9 -9 -6 -6 -6 -6 -6 -5 -5 -------- Run | Yrd Mat Min Mat Sto Gar Rec Scr Fac Low Low Zio Dee Pro Fac Hostile Shots Fired 823 | . 100 11 57 85 68 12 . 103 43 42 . 68 33 201 Missed 197 | . 29 7 11 13 20 2 . 34 16 13 . 9 6 37 Hits 626 | . 71 4 46 72 48 10 . 69 27 29 . 59 27 164 Melee 15 | . . . . 9 1 . . 2 . . . . . 3 Projectile 611 | . 71 4 46 63 47 10 . 67 27 29 . 59 27 161 Critical Strikes 13 | . 2 . 1 6 1 . . . 1 1 . . . 1 Part Disruptions 3 | . . . . . . . . . . . . . . 3 Damage Taken 9649 | . 754 81 608 1152 574 144 . 714 417 309 . 1958 458 2480 Core 1092 | . 102 35 78 170 40 14 . 154 58 31 . 131 59 220 Absorbed by Shields 498 | . . . . . . . . 168 138 119 . . . 73 Redirected to Shielding 326 | . . . . . . . . . . . . 326 . . Ignored by Resistances 474 | . . . . . . . . . . . . 474 . . Regen/Repaired (Parts) 809 | . 107 . 103 . . . 447 48 . . . . . 104 Core Remaining (%) 54 | 100 . 45 . . . . 24 . . . . . 49 . Volleys Fired 668 | 8 90 17 66 76 131 20 13 64 21 13 . 38 52 59 Largest 7 | 2 2 2 4 4 4 4 1 7 7 7 . 7 7 7 Hottest 213 | 100 100 66 202 202 94 94 5 196 196 213 . 192 165 189 Shots Fired 2040 | 16 175 32 264 300 246 82 13 299 118 69 . 124 121 181 Gun 1319 | 16 127 . 6 216 157 82 . 275 113 65 . 120 52 90 Cannon 610 | . 48 30 258 84 . . . 21 5 4 . . 69 91 Launcher 2 | . . 2 . . . . . . . . . . . . Special 109 | . . . . . 89 . 13 3 . . . 4 . . Kinetic 1574 | . 118 30 237 257 157 82 . 275 113 65 . 98 52 90 Thermal 408 | 16 43 . 27 43 89 . . 21 5 4 . . 69 91 Explosive 2 | . . 2 . . . . . . . . . . . . Electromagnetic 36 | . 14 . . . . . . . . . . 22 . . Robot Hit Streak 24 | 7 12 6 8 16 24 7 5 12 18 4 . 15 6 10 Robot Miss Streak 12 | 2 7 3 5 6 3 2 2 11 12 11 . 8 2 3 Penetration Max 1 | . . . . . . . . . . . . 1 . 1 Secondary Targets 31 | . 4 . . 3 5 1 . 2 6 4 . 4 1 1 Max Gunslinging Chain 2 | . 1 . . 1 1 1 . 1 2 2 . 1 1 1 Shots Hit Robots 1166 | 9 110 19 117 175 165 43 17 194 87 37 . 85 32 76 Core Hits 745 | 7 52 10 50 65 60 19 . 230 116 34 . 57 13 32 Critical Kills 3 | . . . . 1 . 1 . . . . . 1 . . Critical Parts Destroyed 11 | . 1 . . 3 . . . 5 . . . . . 2 Critical Strikes 41 | . 13 . 8 7 2 1 . 5 . 1 . 2 . 2 Burn 6 | . 6 . . . . . . . . . . . . . Destroy 9 | . 1 . . 4 . 1 . . . . . 1 . 2 Blast 17 | . 6 . 8 3 . . . . . . . . . . Smash 5 | . . . . . . . . 5 . . . . . . Sever 2 | . . . . . 2 . . . . . . . . . Impale 2 | . . . . . . . . . . 1 . 1 . . Melee Attacks 119 | . 11 . . 7 17 3 8 25 19 8 1 20 . . Impact 52 | . 11 . . 7 17 3 . 14 . . . . . . Slashing . | . . . . . . . . . . . . . . . Piercing 59 | . . . . . . . . 11 19 8 1 20 . . Sneak Attacks 30 | . . . . 1 . . 8 13 . 4 . 4 . . Combat Hostiles . | . . . . . . . . . . . . . . . Follow-up Attacks . | . . . . . . . . . . . . . . . Damage Inflicted 23929 | 114 1841 545 2665 3200 2243 684 . 4529 1529 774 . 1870 1005 2930 Guns 12840 | 114 1108 . . 2120 1324 684 . 3143 1430 573 . 1073 346 925 Cannons 7526 | . 562 413 2665 1031 . . . 257 . . . . 659 1939 Explosions 369 | . 171 132 . . . . . . . . . . . 66 Melee 2275 | . . . . 49 . . . 1129 99 201 . 797 . . Ramming . | . . . . . . . . . . . . . . . Kinetic 15810 | . 1146 413 2441 2560 1324 684 . 3143 1430 573 . 825 346 925 Thermal 5300 | 114 547 50 224 591 919 . . 257 . . . . 659 1939 Explosive 148 | . . 82 . . . . . . . . . . . 66 Electromagnetic 396 | . 148 . . . . . . . . . . 248 . . Impact 920 | . . . . 49 . . . 871 . . . . . . Slashing . | . . . . . . . . . . . . . . . Piercing 1355 | . . . . . . . . 258 99 201 . 797 . . Highest Corruption 10 | . . 4 3 10 10 10 10 3 3 3 . . . 3 Average Corruption 4 | . . 3 3 5 10 10 10 2 3 3 . . . 2 Corruption Purged . | . . . . . . . . . . . . . . . Corruption Blocked . | . . . . . . . . . . . . . . . Effects 309 | . . . 36 40 74 38 . 47 39 35 . . . . Message Errors 73 | . . . 8 9 19 13 . 9 5 10 . . . . Matter Fused 85 | . . . 16 12 17 7 . 14 15 4 . . . . Heat Flow Errors 33 | . . . 5 3 10 3 . 3 6 3 . . . . Energy Discharges 30 | . . . 3 7 5 3 . 5 1 6 . . . . Parts Fused 3 | . . . . . 1 . . . 2 . . . . . Data Loss (minor) 48 | . . . . 4 11 8 . 9 6 10 . . . . Data Loss (major) 15 | . . . 1 1 5 1 . 4 3 . . . . . Misfires 14 | . . . 1 3 3 2 . 2 1 2 . . . . Alerts 4 | . . . 1 . 1 1 . 1 . . . . . . Weapon Failures 4 | . . . 1 1 2 . . . . . . . . . Overload Shots . | . . . . . . . . . . . . . . . Overflow Damage 923 | . 78 1 27 23 16 . . 527 44 52 . 119 . 36 Projectiles 96 | . . 1 27 14 16 . . 2 . . . . . 36 Explosions 78 | . 78 . . . . . . . . . . . . . Melee 749 | . . . . 9 . . . 525 44 52 . 119 . . Knockbacks 37 | . 1 6 20 6 . . . 4 . . . . . . Impact 5 | . . . . 1 . . . 4 . . . . . . Kinetic 31 | . 1 6 19 5 . . . . . . . . . . Secondary 1 | . . . 1 . . . . . . . . . . . Self-Inflicted Damage 99 | . . . . . . . . . . . . . . 99 Shots 1 | . . . . . . . . . . . . . . 1 Rammed . | . . . . . . . . . . . . . . . Targets Rammed . | . . . . . . . . . . . . . . . Kicked . | . . . . . . . . . . . . . . . Crushed . | . . . . . . . . . . . . . . . Highest Temperature 434 | 98 175 210 245 434 248 183 . 356 261 186 . 295 27 227 Average Temperature 71 | 41 58 68 39 90 55 40 . 85 123 52 . 96 13 59 Received Heat Transfer 2618 | . 303 30 249 396 135 45 . 131 104 46 . 444 63 672 Effects 4 | . . . . 2 . . . 2 . . . . . . Energy Bleed 2 | . . . . 2 . . . . . . . . . . Interference 2 | . . . . . . . . 2 . . . . . . Siege Activations . | . . . . . . . . . . . . . . . Martial Activations . | . . . . . . . . . . . . . . . Shielding Activations . | . . . . . . . . . . . . . . . Robots Disrupted . | . . . . . . . . . . . . . . . Combat Hostiles . | . . . . . . . . . . . . . . . Robots Corrupted 7 | . . . . 1 . . . 4 . . . 2 . . Combat Hostiles 2 | . . . . . . . . . . . . 2 . . Parts Fried 8 | . . . . 1 . . . 7 . . . . . . Impact Corruptions 12 | . . . . 1 . . . 11 . . . . . . Robots Melted 1 | . 1 . . . . . . . . . . . . . Combat Hostiles . | . . . . . . . . . . . . . . . Parts Melted 12 | . 7 . . 2 1 . . 2 . . . . . . Heat Transferred 8500 | 333 1654 100 407 1073 3108 . . 400 . . . . 375 1050 Parts Sabotaged . | . . . . . . . . . . . . . . . Parts Stolen . | . . . . . . . . . . . . . . . Parts Stripped . | . . . . . . . . . . . . . . . Power Chain Reactions . | . . . . . . . . . . . . . . . Alert | -11 -10 -10 -9 -9 -9 -9 -9 -6 -6 -6 -6 -6 -5 -5 ------- Run | Yrd Mat Min Mat Sto Gar Rec Scr Fac Low Low Zio Dee Pro Fac Maximum Alert Level 4 | . 1 . 1 1 4 2 . 2 . . . . . 1 Low Security (%) 50 | 100 84 100 60 22 5 . . 48 . . . . . 72 Level 1 24 | . 15 . 39 77 5 10 . 17 . . . . . 27 Level 2 18 | . . . . . 29 89 . 34 . . . . . . Level 3 4 | . . . . . 35 . . . . . . . . . Level 4 2 | . . . . . 23 . . . . . . . . . Level 5 . | . . . . . . . . . . . . . . . High Security . | . . . . . . . . . . . . . . . Max Security . | . . . . . . . . . . . . . . . Peak Influence 1233 | 15 344 123 286 369 1233 574 . 459 . . . . . 260 Initial 554 | . . 123 . 96 122 554 . . . . . . . . Average 262 | 3 97 31 169 209 786 471 . 251 . . . . . 111 Influence Increases 6658 | 30 880 167 1002 892 1121 275 . 986 310 160 . . 200 635 Destroy 0b10 Robot/C 3560 | . 500 80 500 500 500 80 . 540 260 140 . . 180 280 Destroy 0b10 Robot/NC 525 | 30 70 10 100 120 15 35 . 110 10 . . . . 25 Destroy Leader 806 | . 118 20 180 156 20 . . 170 40 20 . . 20 62 Allied During Kill 45 | . . 12 22 9 . . . . . . . . . 2 Successful Hack 216 | . 45 . 37 38 . 7 . 73 . . . . . 16 Select Force Hacks 240 | . 60 . 30 . . 150 . . . . . . . . Disable Machine 300 | . 45 30 45 60 15 . . 30 . . . . . 75 Anti-Garrison Action 550 | . . . . . 550 . . . . . . . . . Destroy Structure 251 | . 27 15 28 9 21 3 . 18 . . . . . 130 Lose Combat Pursuer 165 | . 15 . 60 . . . . 45 . . . . . 45 Influence Decreases 6495 | 30 562 485 773 933 76 1131 377 535 761 160 . . 200 472 Entered New Map 1618 | . . 195 . 133 66 679 377 . 168 . . . . . Time Decay 4277 | 30 522 290 583 580 . 452 . 535 593 160 . . 200 332 Lost Part 180 | . 40 . . 30 10 . . . . . . . . 100 Lost Ally 120 | . . . 40 40 . . . . . . . . . 40 Purge Threat 300 | . . . 150 150 . . . . . . . . . . Squads Dispatched 33 | . 5 . 3 3 . . . 17 . . . . . 5 Investigation 16 | . 4 . 2 . . . . 6 . . . . . 4 Extermination 8 | . . . . . . . . 7 . . . . . 1 Reinforcement 7 | . 1 . 1 1 . . . 4 . . . . . . Assault 2 | . . . . 2 . . . . . . . . . . Garrison . | . . . . . . . . . . . . . . . Intercept . | . . . . . . . . . . . . . . . Searches Triggered . | . . . . . . . . . . . . . . . Construction Impeded 2 | . . . . . . . . 2 . . . . . . Haulers Reinforced . | . . . . . . . . . . . . . . . Active Scanning Responses . | . . . . . . . . . . . . . . . Cargo Convoy Interrupts 1 | . . . . . . . . . . . . . . 1 Stealth | -11 -10 -10 -9 -9 -9 -9 -9 -6 -6 -6 -6 -6 -5 -5 --------- Run | Yrd Mat Min Mat Sto Gar Rec Scr Fac Low Low Zio Dee Pro Fac Distress Signals 5 | . . . 2 2 . . . . . . . . . 1 Communications Jammed . | . . . . . . . . . . . . . . . Distress Signals . | . . . . . . . . . . . . . . . Times Spotted 245 | . 32 6 38 30 22 4 . 34 13 7 . 17 9 33 Peak Tracking Total 13 | . 4 2 6 7 3 2 . 5 3 3 . 5 5 13 Tactical Retreats 8 | . 1 . 3 . . . . 3 . . . . . 1 Traps | -11 -10 -10 -9 -9 -9 -9 -9 -6 -6 -6 -6 -6 -5 -5 ------- Run | Yrd Mat Min Mat Sto Gar Rec Scr Fac Low Low Zio Dee Pro Fac Traps Triggered 16 | . 1 . 1 1 9 . . 3 . . . . . 1 Indirectly . | . . . . . . . . . . . . . . . Trap Hack Attempts 19 | . . . . 19 . . . . . . . . . . Triggered . | . . . . . . . . . . . . . . . Disarmed 1 | . . . . 1 . . . . . . . . . . Reprogrammed 2 | . . . . 2 . . . . . . . . . . Reused . | . . . . . . . . . . . . . . . Traps Extracted . | . . . . . . . . . . . . . . . Installed . | . . . . . . . . . . . . . . . Triggered . | . . . . . . . . . . . . . . . Machines | -11 -10 -10 -9 -9 -9 -9 -9 -6 -6 -6 -6 -6 -5 -5 ---------- Run | Yrd Mat Min Mat Sto Gar Rec Scr Fac Low Low Zio Dee Pro Fac Machines Disabled 30 | . 3 2 3 4 6 . . 2 . . 3 1 1 5 Max in Single Turn 1 | . 1 1 1 1 1 . . 1 . . 1 1 1 1 Garrison Relay 4 | . . . . . 4 . . . . . . . . . Machines Repaired . | . . . . . . . . . . . . . . . Machines Dismantled 5 | . . . . . . . . . . . 3 . . 2 Machines Sabotaged . | . . . . . . . . . . . . . . . Overloaded Fab Kills . | . . . . . . . . . . . . . . . Hacking | -11 -10 -10 -9 -9 -9 -9 -9 -6 -6 -6 -6 -6 -5 -5 --------- Run | Yrd Mat Min Mat Sto Gar Rec Scr Fac Low Low Zio Dee Pro Fac Machines Accessed 83 | . 10 1 15 14 3 9 3 17 1 2 . . . 8 Terminals 47 | . 7 . 10 13 3 4 . 7 . . . . . 3 Fabricators 3 | . . . . . . . . 1 . . . . . 2 Repair Stations 6 | . 1 . 2 . . . . 2 . . . . . 1 Recycling Units 15 | . 2 . 1 . . 5 . 5 . . . . . 2 Scanalyzers 4 | . . . 2 . . . . 2 . . . . . . Garrison Access 1 | . . . . 1 . . . . . . . . . . Total Hacks 203 | . 31 1 41 26 8 19 13 40 1 2 . . . 21 Successful 116 | . 20 1 26 17 . 6 13 19 1 2 . . . 11 Failed 85 | . 10 . 14 9 8 13 . 21 . . . . . 10 Catastrophic 21 | . 3 . 5 2 4 1 . 3 . . . . . 3 Database Lockouts 2 | . 1 . 1 . . . . . . . . . . . Manual 89 | . 18 . 19 12 . 14 . 15 . . 1 . . 10 Terminals 116 | . 20 . 27 25 8 9 . 15 . . . . . 12 Fabricators 7 | . . . . . . . . 3 . . . . . 4 Repair Stations 23 | . 6 . 5 . . . . 9 . . . . . 3 Recycling Units 26 | . 5 . 1 . . 10 . 8 . . . . . 2 Scanalyzers 13 | . . . 8 . . . . 5 . . . . . . Garrison Access 1 | . . . . 1 . . . . . . . . . . Terminal Hacks 49 | . 3 1 8 12 . 1 13 4 1 2 . . . 4 Record 13 | . . . . . . . 13 . . . . . . . Part Schematic 6 | . 1 . 1 1 . 1 . 1 . . . . . 1 Robot Schematic 1 | . . . 1 . . . . . . . . . . . Robot Analysis 1 | . . . 1 . . . . . . . . . . . Prototype ID Bank 5 | . 2 . . 1 . . . . . . . . . 2 Open Door 10 | . . 1 . 6 . . . . 1 2 . . . . Branch Access Points 2 | . . . 1 . . . . 1 . . . . . . Emergency Access Points 1 | . . . 1 . . . . . . . . . . . Alert Level 2 | . . . . 2 . . . . . . . . . . Unreport Threat 2 | . . . 1 1 . . . . . . . . . . Locate Traps 3 | . . . 1 . . . . 1 . . . . . 1 Hauler Manifests 2 | . . . . 1 . . . 1 . . . . . . Registered Components 1 | . . . 1 . . . . . . . . . . . Fabricator Hacks 2 | . . . . . . . . 1 . . . . . 1 Network Status 1 | . . . . . . . . 1 . . . . . . Load Schematic 1 | . . . . . . . . . . . . . . 1 Repair Station Hacks 15 | . 4 . 4 . . . . 5 . . . . . 2 Scan Component 8 | . 2 . 2 . . . . 3 . . . . . 1 Repair 7 | . 2 . 2 . . . . 2 . . . . . 1 Recycling Unit Hacks 2 | . 2 . . . . . . . . . . . . . Retrieve Components 2 | . 2 . . . . . . . . . . . . . Scanalyzer 11 | . . . 7 . . . . 4 . . . . . . Insert Component 5 | . . . 3 . . . . 2 . . . . . . Analyze 6 | . . . 4 . . . . 2 . . . . . . Garrison Access Hacks 1 | . . . . 1 . . . . . . . . . . Unlock Access 1 | . . . . 1 . . . . . . . . . . Unauthorized Hacks 35 | . 10 . 7 4 . 5 . 5 . . . . . 4 Terminals 18 | . 8 . 6 4 . . . . . . . . . . Assimilate 1 | . 1 . . . . . . . . . . . . . Botnet 4 | . . . . 4 . . . . . . . . . . Operators 1 | . 1 . . . . . . . . . . . . . Skim 12 | . 6 . 6 . . . . . . . . . . . Fabricators 2 | . . . . . . . . . . . . . . 2 Liberate 1 | . . . . . . . . . . . . . . 1 Recompile 1 | . . . . . . . . . . . . . . 1 Repair Stations . | . . . . . . . . . . . . . . . Recycling Units 14 | . 2 . . . . 5 . 5 . . . . . 2 Tunnel 7 | . 2 . . . . 5 . . . . . . . . Fedlink 7 | . . . . . . . . 5 . . . . . 2 Scanalyzers 1 | . . . 1 . . . . . . . . . . . Extract 1 | . . . 1 . . . . . . . . . . . Garrison Access . | . . . . . . . . . . . . . . . Data Cores Recovered 1 | . . . . . . . . 1 . . . . . . Used . | . . . . . . . . . . . . . . . Hacking Detections 64 | . 10 . 14 11 3 6 . 15 . . . . . 5 Full Trace Events 9 | . 2 . 1 . 3 1 . 1 . . . . . 1 Feedback Events . | . . . . . . . . . . . . . . . Feedback Blocked . | . . . . . . . . . . . . . . . Robot Schematics Acquired 5 | . . . 1 . . . . . . . 4 . . . Robots Built . | . . . . . . . . . . . . . . . Authchips . | . . . . . . . . . . . . . . . Time . | . . . . . . . . . . . . . . . Total Robot Build Rating . | . . . . . . . . . . . . . . . Part Schematics Acquired 28 | . 1 . 6 1 . 1 . 3 . . 15 . . 1 Parts Built . | . . . . . . . . . . . . . . . Authchips . | . . . . . . . . . . . . . . . Time . | . . . . . . . . . . . . . . . Total Part Build Rating . | . . . . . . . . . . . . . . . Parts Repaired 7 | . 2 . 2 . . . . 2 . . . . . 1 Time 248 | . 64 . 64 . . . . 76 . . . . . 44 Parts Recycled . | . . . . . . . . . . . . . . . Recycled Matter . | . . . . . . . . . . . . . . . Retrieved Matter . | . . . . . . . . . . . . . . . Retrieved Components 15 | . 15 . . . . . . . . . . . . . Parts Scanalyzed 5 | . . . 3 . . . . 2 . . . . . . Part Schematics Acquired 5 | . . . 3 . . . . 2 . . . . . . Parts Damaged . | . . . . . . . . . . . . . . . Bothacking | -11 -10 -10 -9 -9 -9 -9 -9 -6 -6 -6 -6 -6 -5 -5 ------------ Run | Yrd Mat Min Mat Sto Gar Rec Scr Fac Low Low Zio Dee Pro Fac Used RIF Installer . | . . . . . . . . . . . . . . . Robots Hacked 18 | . . . . . . . 17 1 . . . . . . Non-combat 7 | . . . . . . . 6 1 . . . . . . Combat 11 | . . . . . . . 11 . . . . . . . Robot Hacks Applied 20 | . . . . . . . 17 3 . . . . . . parse_system 18 | . . . . . . . 17 1 . . . . . . no_distress 1 | . . . . . . . . 1 . . . . . . find_chute 1 | . . . . . . . . 1 . . . . . . Relay Couplers Released 18 | . . . . . 18 . . . . . . . . . Machine Destruction 18 | . . . . . 18 . . . . . . . . . Fabnet Peak Effective % . | . . . . . . . . . . . . . . . Robots Rewired . | . . . . . . . . . . . . . . . Allies Hacked . | . . . . . . . . . . . . . . . Hacks Repelled . | . . . . . . . . . . . . . . . Allies | -11 -10 -10 -9 -9 -9 -9 -9 -6 -6 -6 -6 -6 -5 -5 -------- Run | Yrd Mat Min Mat Sto Gar Rec Scr Fac Low Low Zio Dee Pro Fac Total Allies 9 | . 1 2 . 2 . . . . . . 2 . . 2 Largest Group 2 | . 1 2 2 2 . . . . . . 2 2 . 2 Highest-Rated Group 192 | . 10 45 45 62 . . . . . . 192 192 . 82 Highest-Rated Ally 96 | . 10 31 31 31 . . . . . . 96 96 . 41 Initial Warlord ECA Mod 16 | . . . . . . 8 8 . . . . . . . Total Orders 1 | . . . . . 1 . . . . . . . . . EXPLORE 1 | . . . . . 1 . . . . . . . . . Ally Attacks 77 | . . 3 16 15 . . . . . . . 40 . 3 Total Damage 1349 | . . 63 150 290 . . . . . . . 686 . 160 Kills 13 | . . 2 2 3 . . . . . . . 6 . . Allies Corrupted . | . . . . . . . . . . . . . . . Allies Melted . | . . . . . . . . . . . . . . . Intel | -11 -10 -10 -9 -9 -9 -9 -9 -6 -6 -6 -6 -6 -5 -5 ------- Run | Yrd Mat Min Mat Sto Gar Rec Scr Fac Low Low Zio Dee Pro Fac Active Infowar (turns) 1791 | 73 245 . . . 402 101 966 2 . . . 2 . . Terrain 3 | . . . . . . 2 . . . . . 1 . . Structural 966 | . . . . . . . 966 . . . . . . . Seismic 819 | 73 245 . . . 402 99 . . . . . . . . Cloaking 1 | . . . . . . . . . . . . 1 . . ECM 2 | . . . . . . . . 2 . . . . . . Robot Analysis Total 1 | . . . 1 . . . . . . . . . . . Derelict Logs Recovered 8 | . . 1 . . . . . . 2 2 1 . 2 . Drone Launches 1 | . . . . . 1 . . . . . . . . . Drone Recoveries 1 | . . . . . 1 . . . . . . . . . Exploration | -11 -10 -10 -9 -9 -9 -9 -9 -6 -6 -6 -6 -6 -5 -5 ------------- Run | Yrd Mat Min Mat Sto Gar Rec Scr Fac Low Low Zio Dee Pro Fac Turns Passed 35789 | 121 2333 1315 2257 1790 1934 1132 5070 3690 2308 1948 3209 4784 2652 1246 Spaces Moved 20539 | 86 1838 684 1512 855 915 684 3297 1899 1347 1164 1941 2654 1180 483 Core 2 | 2 . . . . . . . . . . . . . . Treads . | . . . . . . . . . . . . . . . Legs . | . . . . . . . . . . . . . . . Wheels 20537 | 84 1838 684 1512 855 915 684 3297 1899 1347 1164 1941 2654 1180 483 Hover . | . . . . . . . . . . . . . . . Flight . | . . . . . . . . . . . . . . . Fastest Speed 50 | 50 80 95 95 150 135 150 150 150 160 160 160 145 175 190 Average Speed 147 | 79 92 95 117 153 147 150 150 159 160 160 160 160 175 190 Slowest Speed 230 | 80 105 95 155 230 190 150 150 165 160 160 160 175 175 190 Overloaded Moves . | . . . . . . . . . . . . . . . Propulsion Burnouts . | . . . . . . . . . . . . . . . Robots Hopped . | . . . . . . . . . . . . . . . Potential Cave-ins 2 | . . . . . . . . . . . . . . 2 Cave-ins Triggered . | . . . . . . . . . . . . . . . Exploration Rate (%) 77 | 3 99 98 93 95 78 97 94 33 99 99 86 76 96 16 Regions Visited 14 Branch Regions 9 Pre-discovered Areas 14 | . 2 2 2 . . 5 . 1 . . 1 . 1 . Known Exits Taken 4 | . . . 1 1 . . . 1 . . . . 1 . Unknown Exits Taken 9 | 1 1 1 . . . 1 1 . 1 1 1 1 . . Scrap Searched 19 | . . 1 . . . . 5 . 3 2 4 . 4 . Spaces Dug 77 | . 8 . . 3 6 . . 13 14 5 . 1 9 18 Terrain Destroyed 255 | . 25 18 17 6 6 . . 18 15 6 . 3 58 83 Melee 35 | . 8 . . 3 6 . . 6 10 1 . 1 . . Projectile 161 | . . 1 17 3 . . . 12 5 5 . 2 58 58 AOE 59 | . 17 17 . . . . . . . . . . . 25 Terrain Rammed . | . . . . . . . . . . . . . . . Walls Destroyed . | . . . . . . . . . . . . . . . Machines Disabled . | . . . . . . . . . . . . . . . Actions | -11 -10 -10 -9 -9 -9 -9 -9 -6 -6 -6 -6 -6 -5 -5 --------- Run | Yrd Mat Min Mat Sto Gar Rec Scr Fac Low Low Zio Dee Pro Fac Total 24567 | 118 2281 1321 1840 1148 1193 738 3411 2383 1416 1204 2014 3096 1704 700 Wait 2253 | 10 250 599 186 103 21 1 48 243 15 3 15 199 455 105 Move 20523 | 85 1837 683 1511 854 912 683 3296 1898 1346 1163 1940 2653 1179 483 Hop . | . . . . . . . . . . . . . . . Pick Up 234 | 7 27 6 25 23 5 4 15 40 3 1 7 59 4 8 Fast Attach 28 | 7 4 . 3 6 . . . 3 . . 1 3 . 1 Attach 53 | . 4 . 4 5 2 2 4 7 . 1 3 18 1 2 Detach 5 | . . . . . . 3 . . . . . 1 . 1 Swap 295 | 1 28 7 23 24 26 15 14 56 9 12 12 50 3 15 Drop 250 | . 30 9 22 31 7 7 13 39 3 3 8 55 10 13 Fire 668 | 8 90 17 66 76 131 20 13 64 21 13 . 38 52 59 Melee 119 | . 11 . . 7 17 3 8 25 19 8 1 20 . . Ram . | . . . . . . . . . . . . . . . Kick . | . . . . . . . . . . . . . . . Crush . | . . . . . . . . . . . . . . . Escape Stasis 80 | . . . . . 72 . . 8 . . . . . . Rewire . | . . . . . . . . . . . . . . . Trap 19 | . . . . 19 . . . . . . . . . . Miscellaneous 40 | . . . . . . . . . . . 27 . . 13 Route ------- -11/Scrapyard -10/Materials (discovered 4 exits: *Mat x3 / *Min) -10/Mines (discovered 2 exits: *Mat x2) -9/Materials (discovered 7 exits: *Mat x3 / *Min x2 / *Sto x2) -9/Storage (discovered 3 exits: *Mat / *Rec / Gar) -9/Garrison (discovered 3 exits: *Rec x3) -9/Recycling (discovered 2 exits: [*Fac] / *Scr) -9/Scraptown (discovered 2 exits: *Fac x2) -6/Factory (discovered 3 exits: *Fac / *Low x2) -6/Lower Caves -6/Lower Caves (discovered 2 exits: *Fac / *Zio) -6/Zion (discovered 2 exits: [*Dee] / [*Pro]) -6/Deep Caves -5/Proximity Caves -5/Factory (discovered 2 exits: Upp x2) History --------- Turn | Location | Event 6 | -11/Scrapyard | Discovered new exit (range 16) 122 | -11/Scrapyard | Entered Materials 313 | -10/Materials | Build established: Mutant 456 | -10/Materials | Discovered new exit (range 13) 624 | -10/Materials | Discovered new exit (range 8) 1022 | -10/Materials | Derelicts attacked the area 1205 | -10/Materials | Discovered new exit (range 7) 1462 | -10/Materials | Build established: Scavenger-Mutant 1637 | -10/Materials | Discovered new exit (range 5) 1726 | -10/Materials | Central database locked down 1984 | -10/Materials | Build established: Mutant 2254 | -10/Materials | Repaired Imp. Light Cannon 2288 | -10/Materials | Repaired Hrd. Light Armor Plating 2455 | -10/Materials | Entered Mines 2482 | -10/Mines | Received a Rocket Launcher from a helpful Derelict 2578 | -10/Mines | Discovered new exit (range 8) 2596 | -10/Mines | Learned location of Storage (-9) 2647 | -10/Mines | Assembled infested the area 3238 | -10/Mines | Discovered new exit (range 5) 3529 | -10/Mines | Met a Derelict who couldn't figure out how to use a Trap Extractor 3633 | -10/Mines | Core integrity fell below 50% 3770 | -10/Mines | Entered Materials 3770 | -9/Materials | Accompanied by 2 allies 3770 | -9/Materials | Evolved 2 slots: Weapon x2 3775 | -9/Materials | Led the pair of lost Derelicts to an unsafe place 4065 | -9/Materials | Build established: Gunner 4274 | -9/Materials | Repaired Imp. Light Cannon 4295 | -9/Materials | Discovered new exit (range 13) 4301 | -9/Materials | Discovered new exit (range 7) 4664 | -9/Materials | Identified exit to Mines 4664 | -9/Materials | Identified exit to Storage 5062 | -9/Materials | Repaired Cooling System 5108 | -9/Materials | Discovered new exit (range 9) 5333 | -9/Materials | Discovered new exit (range 15) 5343 | -9/Materials | Central database locked down 5428 | -9/Materials | Loaded intel: 14 trap records 5503 | -9/Materials | Learned location of Mines (-9) 5627 | -9/Materials | Learned location of 1 exit from Storage 5712 | -9/Materials | Identified exit to Materials 5712 | -9/Materials | Learned location of 2 exits from Materials 5758 | -9/Materials | Learned location of 2 exits from Materials 5814 | -9/Materials | Learned Materials trap positions 6027 | -9/Materials | Entered Storage 6028 | -9/Storage | Identified exit to Recycling 6220 | -9/Storage | Identified exit to Garrison 6561 | -9/Storage | Core integrity fell below 50% 6789 | -9/Storage | Used back door to open Recycling access 6867 | -9/Storage | Discovered exit to Materials (range 14) 6882 | -9/Storage | Found Prototype Launcher 6882 | -9/Storage | Identified Gui. Missile Launcher 7066 | -9/Storage | Met a pair of Derelict thieves 7163 | -9/Storage | System corruption reached 10% 7284 | -9/Storage | Build established: Tank 7817 | -9/Storage | Entered Garrison 7877 | -9/Garrison | Triggered checkpoint 7917 | -9/Garrison | Garrison Relay disabled 7960 | -9/Garrison | Build established: Gunner 8071 | -9/Garrison | Triggered checkpoint 8178 | -9/Garrison | Discovered exit to Recycling (range 11) 8207 | -9/Garrison | Triggered checkpoint 8279 | -9/Garrison | Garrison Relay disabled 8334 | -9/Garrison | Attempted to access garrison exit controls, blocked by remote lockdown 8417 | -9/Garrison | Triggered checkpoint 8588 | -9/Garrison | Triggered checkpoint 8609 | -9/Garrison | Garrison Relay disabled 8613 | -9/Garrison | Triggered checkpoint 8663 | -9/Garrison | Discovered exit to Recycling (range 15) 8812 | -9/Garrison | Triggered checkpoint 8862 | -9/Garrison | Build established: Scavenger-Gunner 9183 | -9/Garrison | Triggered checkpoint 9252 | -9/Garrison | Build established: Gunner 9273 | -9/Garrison | Triggered checkpoint 9296 | -9/Garrison | Garrison Relay disabled 9369 | -9/Garrison | Discovered exit to Recycling (range 11) 9751 | -9/Garrison | Entered Recycling 10102 | -9/Recycling | Discovered new exit (range 15) 10182 | -9/Recycling | Scanned before Scraplab entrance 10868 | -9/Recycling | Entered Scraplab 10880 | -9/Recycling | Discovered new exit (range 2) 10883 | -9/Recycling | Entered Scraptown 10886 | -9/Scraptown | System corruption cleaned by C-Scrubber 11112 | -9/Scraptown | Build established: Mutant 11218 | -9/Scraptown | Discovered new exit (range 5) 11339 | -9/Scraptown | Visited TADAMA 11369 | -9/Scraptown | Visited SPCMW 11401 | -9/Scraptown | Visited CR-KLE's Repair Center 11530 | -9/Scraptown | Visited The Evicted 11558 | -9/Scraptown | Visited Comm Corps 11663 | -9/Scraptown | Visited Cyclists 11683 | -9/Scraptown | Visited Fellowship of the Rings 11985 | -9/Scraptown | Visited UFD Registry 11985 | -9/Scraptown | Registered with UFD as "Thermorigger" 12045 | -9/Scraptown | Visited Chapter 10 12071 | -9/Scraptown | Visited Junk Repository 12122 | -9/Scraptown | Visited Science Testing Area 12146 | -9/Scraptown | Visited A0-MCA Data Center 12165 | -9/Scraptown | Visited Scrap Suit Storage 12204 | -9/Scraptown | Visited DA-N13 Charitable Foundation 12225 | -9/Scraptown | Found DCF Scrap (29 items) 12252 | -9/Scraptown | Visited LU-1G1's Boring Crew 12444 | -9/Scraptown | Visited Observation Area 12501 | -9/Scraptown | Visited Infowarlord's Domain 12567 | -9/Scraptown | Entered Cyclist Reading Room 12835 | -9/Scraptown | Discovered new exit (range 3) 12905 | -9/Scraptown | Given a B rating by A0-MCA 12913 | -9/Scraptown | Found A0-MCA's Component Scanner 12932 | -9/Scraptown | Build established: Gunner 14276 | -9/Scraptown | Build established: Skirmisher 14695 | -9/Scraptown | Found Exp. Terrain Scan Processor 15433 | -9/Scraptown | CR-KLE repaired 8 parts 15587 | -9/Scraptown | Build established: Gunner 15872 | -9/Scraptown | Met Optimus 15872 | -9/Scraptown | Accepted into 0bPrime 15953 | -9/Scraptown | Entered Factory 15953 | -6/Factory | Evolved 6 slots: Utility x3, Weapon x3 16528 | -6/Factory | Loaded intel: 8 recycling unit locations 16568 | -6/Factory | Build established: Executioner 16724 | -6/Factory | Learned location of Protoforge (-2) 17444 | -6/Factory | Discovered new exit (range 8) 17480 | -6/Factory | Identified exit to Factory 18136 | -6/Factory | Identified exit to Lower Caves 18191 | -6/Factory | Repaired Recoil Stabilizer? 18240 | -6/Factory | Repaired Hardlight Generator 19643 | -6/Factory | Entered Lower Caves 19702 | -6/Lower Caves | Encountered a Warlord checkpoint 20595 | -6/Lower Caves | Spotted B-75 Beast 20605 | -6/Lower Caves | Destroyed B-75 Beast 20635 | -6/Lower Caves | Attracted the attention of an 0b10 checkpoint 21190 | -6/Lower Caves | Discovered new exit (range 9) 21951 | -6/Lower Caves | Entered another Lower Caves area 21953 | -6/Lower Caves | Attracted the attention of an 0b10 checkpoint 22046 | -6/Lower Caves | Discovered exit to Factory (range 11) 22562 | -6/Lower Caves | Build established: Derelict-Executioner 23032 | -6/Lower Caves | Learned Factory machine intel 23209 | -6/Lower Caves | Learned 4 Factory zone layouts 23216 | -6/Lower Caves | Discovered new exit (range 12) 23899 | -6/Lower Caves | Entered Zion 24016 | -6/Zion | Discovered new exit (range 15) 24090 | -6/Zion | Given the Hacking Drone Bay 24094 | -6/Zion | Found Prototype Device 24157 | -6/Zion | System corruption cleaned by Quarantine Array 24216 | -6/Zion | Learned Factory repair station intel 24822 | -6/Zion | Learned Factory recycling unit intel 25130 | -6/Zion | Given A8's code to call for help 26076 | -6/Zion | Found Relay Coupler [Programmer] 26082 | -6/Zion | Found Relay Coupler [Programmer] 26223 | -6/Zion | Discovered new exit (range 3) 26223 | -6/Zion | Saw the warning signs outside the Deep Caves entrance 26277 | -6/Zion | Enhanced Grunt warped into view, answering call for help 26282 | -6/Zion | Enhanced Grunt warped into view, answering call for help 26377 | -6/Zion | Identified Hacking Drone Bay 26411 | -6/Zion | Found Relay Coupler [Programmer] 26663 | -6/Zion | Build established: Executioner 27108 | -6/Zion | Entered Deep Caves 27108 | -6/Deep Caves | Accompanied by 2 allies 27422 | -6/Deep Caves | Attacked by Z-Imprinter 27431 | -6/Deep Caves | Allies destroyed Z-Imprinter 27477 | -6/Deep Caves | Found Prototype Protection 27477 | -6/Deep Caves | Identified Zio. Weapon Casing 27597 | -6/Deep Caves | Z-Facility disabled 27823 | -6/Deep Caves | Found Zio. Weapon Casing 27864 | -6/Deep Caves | Found Prototype Device 27864 | -6/Deep Caves | Identified Exp. Thermal Shield 28110 | -6/Deep Caves | Discovered new exit (range 7) 28890 | -6/Deep Caves | Found Surveybot 24 Chip 28901 | -6/Deep Caves | Found Unknown Device 28901 | -6/Deep Caves | Identified Surveybot 24 Scanner 29415 | -6/Deep Caves | Found Prototype Protection 29418 | -6/Deep Caves | Found Zio. Weapon Casing 29991 | -6/Deep Caves | Identified Zio. Heavy Carapace 30162 | -6/Deep Caves | Found Exp. Thermal Shield 30640 | -6/Deep Caves | Spotted AG-34376 30682 | -6/Deep Caves | Destroyed AG-34376 30690 | -6/Deep Caves | Found GOLEM Unit 30770 | -6/Deep Caves | Spotted AG-78617 30821 | -6/Deep Caves | Destroyed AG-78617 30849 | -6/Deep Caves | Lost 5 parts (4u1w) 30899 | -6/Deep Caves | Found Prototype Device 30909 | -6/Deep Caves | Identified Cloak of Protection 31892 | -6/Deep Caves | Entered Proximity Caves 32362 | -5/Proximity Caves | Found Alien Artifact 32529 | -5/Proximity Caves | Attracted the attention of an 0b10 checkpoint 32532 | -5/Proximity Caves | Core integrity fell below 50% 33612 | -5/Proximity Caves | Discovered exit to Factory (range 7) 34008 | -5/Proximity Caves | Learned Factory terminal intel 34544 | -5/Proximity Caves | Entered Factory 34544 | -5/Factory | Evolved 2 slots: Power x1, Utility x1 34545 | -5/Factory | Identified exit to Upper Caves 34547 | -5/Factory | Loaded intel: 279 machine locations 34548 | -5/Factory | Loaded intel: 26 terminal locations 34549 | -5/Factory | Loaded intel: 6 repair station locations 34550 | -5/Factory | Loaded intel: 8 recycling unit locations 34626 | -5/Factory | Loaded intel: 8 recycling unit locations 34855 | -5/Factory | Build established: Golem 34870 | -5/Factory | Repaired Arm. Huge Wheel 35744 | -5/Factory | Cargo convoy interrupted 35790 | -5/Factory | Self-destructed Last Messages --------------- 35780_ Acquired 10 matter. 35781_ M-28 Smith repairs X-72 Disruptor Imp. VSS Leg. 35781_ Slug penetrates P-70 Sage. 35781_ Destroyed Antigrav System. 35781_ Slug penetrates Wall. 35781_ Slug penetrates P-70 Sage. 35781_ P-70 Sage destroyed. 35781_ Slug penetrates Wall. 35782_ Acquired 4 matter. 35782_ Penetrated by Slug. 35783_ Critical hit (Destroy). 35783_ Asb. Flux Generator destroyed. 35783_ KE Penetrator destroyed. 35784_ Slug penetrates Wall. 35785_ Arm. Huge Wheel destroyed. 35787_ Asb. Focal Cannon destroyed. 35787_ Slug penetrates Wall. 35788_ Coil Gun destroyed. 35788_ GOLEM Unit destroyed. 35789_ Door malfunctions. Map ----- +----------------------------------------------------+ | ???????# " #??## #???????? | | """"???# ### ##### #???# #???????? | | """"???#?????## ##???# #???# #??? #?? | | """"?????+#####+######+##??# +? +?" | | """"??? #??# # #?" | | ??????? #??# # #?" | | ??????? #??############### #?? | | ????????""" """ """ """ #????????## #?? | | ????????"""?""" """ """ #?????????# #?? | | ????????"""?""" """ """ #?????????# #?? | | ???????? ##????????# #?? | | ??????????????##########"#????????# #?? | | ?????????????? ???????####??####### " ###+###### | | ??????????????? ????#########T ####"% # | | ???????????????? #??# "%" # | | ????????????????# #?# " # | | ?????????????????# ## / = | | ??????????????????# # # " | | ???????????????????## # | | ????????????????????# ###/"#####/##/########## | | ???????????##########h x=u# #????????????## | | ?????????? w w=x[m/ """ #????"""??# | | ?????????? !!!x# """ #????"""??# | | ?????????? u !!*# """ #????"""??# "" | | ?????????? !!#? ?????????????"" | | ?????????? [![@#? ! """?????"""?????"" | | ???????????####+#######%=!#?? Y"?????"""??????? | | ??????????????????????#^*^#?? """?????"""??????? | | ??????????????????????+^^^;???= ??????????????? | | ???????????????""""?? #/###???######?????????????? | | ???????????????""""??=# ?????????????????????????? | | ???????????????""""? ?# ??????????"??????????????? | | ???????????????"""" ?#???????????"??????????????? | | ??????????????????? ??????????????"??????????????? | | ?????????????????? ??????????????"??????????????? | | ?????????????????? ???????????????"??????????????? | | ??????????????????????????????????"??????????????? | | ??????????????????????????????????"??????????????? | | ??????????????????????????????????"??????????????? | | ??????????????????????????????????"??????????????? | | ?????????????????????????????????????????????????? | | ?????????????????????????????????????????????????? | | ?????????????????????????????????????????????????? | | ?????????????????????????????????????????????????? | | ????????????"""?"""?"""?"""?"""?"""?"""??????????? | | ????????????"""?"""?"""?"""?"""?"""?"""??????????? | | ????????????"""?"""?"""?"""?"""?"""?"""??????????? | | ?????????????????????????????????????????????????? | | ????????????"""?"""?"""?"""?"""?"""?"""??????????? | | """?????????"""?"""?"""?"""?"""?"""?"""??????????? | +----------------------------------------------------+ Best States ------------- Heat Dissipation 66 Energy Generation 45 Energy Capacity 1700 Matter Stores 550 Matter Capacity 550 Sight Range 16 Terrain Scan Range 14 Terrain Scan Density 10 Cloak Strength 5 EM Shielding 2 Corruption Containment 8 Armor Coverage 1200 Resistance: TH 30 Weapon Shielding 100 Evasion (%) 44 Targeting Accuracy 6 Core Analysis 6 Recoil Reduction 4 Particle Charging 25 Offensive Hacking 14 Authchip Count 1 Item Schematics ----------------- Wheel | -10/Materials | Hacked Recoil Stabilizer | -9/Materials | Scanalyzed Minigun | -9/Materials | Scanalyzed Arm. Wheel | -9/Materials | Hacked Hvy. Assault Rifle | -9/Materials | Scanalyzed Lrg. Storage Unit | -9/Materials | Extracted Plasma Cutter | -9/Materials | Extracted Assault Rifle | -9/Storage | Hacked Ion Engine | -9/Recycling | Hacked Coil Gun | -6/Factory | Scanalyzed Hyb. Fission Core | -6/Factory | Scanalyzed Weapon Mount | -6/Factory | Hacked Adv. Heat Sink | -6/Zion | Archive Point Defense System | -6/Zion | Archive Energy Well | -6/Zion | Archive Hvy. Shock Bomb Launcher | -6/Zion | Archive Nuclear Pulse Thruster | -6/Zion | Archive Wave Gun | -6/Zion | Archive Imp. Thermal Generator | -6/Zion | Archive Impulse Thruster | -6/Zion | Archive Hardcell Cannon | -6/Zion | Archive Thermic Laser | -6/Zion | Archive Imp. Focal Shield | -6/Zion | Archive Disruptor Cannon | -6/Zion | Archive Drone Bay | -6/Zion | Archive Adv. Sensor Array | -6/Zion | Archive Lrn. Proton Cannon | -6/Zion | Archive Arm. Huge Wheel | -5/Factory | Hacked Robot Schematics ------------------ M-13 Machinist | -9/Materials | Hacked R-10 Processor | -6/Zion | Archive Y-72 Warden | -6/Zion | Archive E-15 Imp | -6/Zion | Archive B-48 Gladiator | -6/Zion | Archive Fabricated ------------ Nothing Repaired ---------- Imp. Light Cannon | 60% | -10/Materials Hrd. Light Armor Plating | 70% | -10/Materials Imp. Light Cannon | 47% | -9/Materials Cooling System | 36% | -9/Materials Recoil Stabilizer | 8% | -6/Factory Hardlight Generator | 16% | -6/Factory Arm. Huge Wheel | 58% | -5/Factory Alien Tech Used ----------------- None Achievements -------------- None Challenges ------------ None Game ------ Seed TargetRecoilPit Manual? 0 Play Time 03:16:51 Cumulative 1092.8 hours Start 2025.07.20 @ 14:47:47 End 2025.07.20 @ 19:09:34 Sessions 1 Manual Loads 0 Difficulty Rogue Special Mode None Game No. 541 Rogue 541 Adventurer 0 Explorer 0 Win Type - Total 23 Types 10/4/3/0/1/1/2/2/0/0 Lore% 90 Gallery% 89 Achievement% 83 Wizard Run 0 Options --------- Layout 0 ASCII 0 Keyboard 0 Movement Numpad Keybinds 0 Fullscreen 2 Font 24/Smallcaps Map View 76x50 Zoom Use 0% Tactical HUD 1 Map Filters NONE Filters SHIFT_HUE(315) Steam 1 RUN: d1ad13b4-87d2-4f74-9d0e-994a857903d0